fUSD/lending_fUSD_20240528
["ID","MTS","AMOUNT","RATE_DAILY","PERIOD"]
[328130395,1716913855016,-151.0,0.0003,7]
[328130396,1716913855025,-276.42415,0.0003,7]
[328130397,1716913855036,-276.42415,0.0003,7]
[328130398,1716913855046,-151.0,0.0003,7]
[328130399,1716913855057,-151.0,0.0003,7]
[328130400,1716913855068,-151.0,0.0003,7]
[328130401,1716913855078,-151.0,0.0003,7]
[328130402,1716913855089,-151.0,0.0003,7]
[328130403,1716913855098,-151.0,0.0003,7]
[328130404,1716913855111,-151.0,0.0003,7]
[328130405,1716913855122,-151.0,0.0003,7]
[328130406,1716913855132,-303.295437,0.0003,7]
[328130407,1716913855142,-151.0,0.0003,7]
[328130408,1716913855152,-303.295437,0.0003,7]
[328130409,1716913855162,-151.0,0.0003,7]
[328130410,1716913855172,-151.0,0.0003,7]
[328130411,1716913855182,-153.0648168,0.00030044,7]
[328130412,1716913855196,-660.37168987,0.00030133,4]
[328130413,1716913855207,-500.0,0.00030136,2]
[328130414,1716913855220,-1409.12,0.00030136,2]
[328130415,1716913855230,-151.0,0.00030136,7]
[328130416,1716913855240,-2654.44,0.00030136,2]
[328130417,1716913855249,-500.0,0.00030136,2]
[328130418,1716913855259,-500.0,0.00030136,2]
[328130419,1716913855270,-345.04,0.00030136,2]
[328130420,1716913855279,-500.0,0.00030136,2]
[328130421,1716913855291,-518.19,0.00030136,2]
[328130422,1716913855300,-500.0,0.00030136,2]
[328130423,1716913855310,-500.0,0.00030136,2]
[328130424,1716913855321,-682.59,0.00030136,2]
[328130425,1716913855331,-889.03,0.00030136,2]
[328130426,1716913855340,-500.0,0.00030136,2]
[328130427,1716913855350,-549.44,0.00030136,2]
[328130428,1716913855360,-500.0,0.00030136,2]
[328130429,1716913855370,-500.0,0.00030136,2]
[328130430,1716913855380,-991.41,0.00030136,2]
[328130431,1716913855390,-158.99960963,0.00030188,7]
[328130432,1716913855400,-158.99960963,0.00030194,7]
[328130433,1716913855414,-1059.07,0.000302,2]
[328130434,1716913855424,-55730.139924,0.000302,2]
[328130435,1716913855434,-202.913466,0.00030343,120]
[328130436,1716913855446,-153.0648168,0.00030345,7]
[328130437,1716913855456,-237.67,0.0003041,2]
[328130438,1716913855466,-1409.12,0.0003041,2]
[328130439,1716913855476,-2654.44,0.0003041,2]
[328130440,1716913855486,-500.0,0.0003041,2]
[328130441,1716913855496,-500.0,0.0003041,2]
[328130442,1716913855507,-500.0,0.0003041,2]
[328130443,1716913855517,-518.19,0.0003041,2]
[328130444,1716913855526,-500.0,0.0003041,2]
[328130445,1716913855537,-500.0,0.0003041,2]
[328130446,1716913855547,-682.59,0.0003041,2]
[328130447,1716913855556,-889.03,0.0003041,2]
[328130448,1716913855684,-231.63457135,0.0003041,2]
[328130449,1716913855713,-549.44,0.0003041,2]
[328130450,1716913855723,-500.0,0.0003041,2]
[328130451,1716913855733,-500.0,0.0003041,2]
[328130452,1716913855743,-991.41,0.0003041,2]
[328130453,1716913855752,-1600.0,0.00030464,10]
[328130454,1716913855762,-500.0,0.00030464,10]
[328130455,1716913855772,-500.0,0.00030464,10]
[328130456,1716913855782,-153.0648168,0.00030473,7]
[328130457,1716913855792,-911.75,0.000305,2]
[328130458,1716913855802,-78022.195893,0.000305,2]
[328130459,1716913855811,-150.55028266,0.00030503,7]
[328130460,1716913855821,-153.0648168,0.00030538,7]
[328130461,1716913855831,-153.82568732,0.00030542,7]
[328130462,1716913855841,-1000.0,0.000306,2]
[328130463,1716913855850,-7330.15,0.00030623,5]
[328130464,1716913855859,-453.0,0.0003065,2]
[328130465,1716913855868,-150.55028266,0.00030659,7]
[328130466,1716913855878,-150.55028266,0.00030672,7]
[328130467,1716913855887,-1409.12,0.00030684,2]
[328130468,1716913855896,-2654.44,0.00030684,2]
[328130469,1716913855906,-347.91,0.00030684,2]
[328130470,1716913855916,-500.0,0.00030684,2]
[328130471,1716913855925,-435.21,0.00030684,2]
[328130472,1716913855935,-518.19,0.00030684,2]
[328130473,1716913855946,-500.0,0.00030684,2]
[328130474,1716913855955,-500.0,0.00030684,2]
[328130475,1716913855965,-682.59,0.00030684,2]
[328130476,1716913855974,-889.03,0.00030684,2]
[328130477,1716913855984,-549.44,0.00030684,2]
[328130478,1716913855994,-272.37996455,0.00030684,2]
[328130479,1716913856003,-480.33206095,0.00030684,2]
[328130480,1716913856013,-991.41,0.00030684,2]
[328130481,1716913856023,-150.55028266,0.00030687,7]
[328130482,1716913856032,-150.55028266,0.00030721,7]
[328130483,1716913856041,-89168.223878,0.000308,2]
[328130484,1716913856053,-153.0648168,0.00030824,7]
[328130485,1716913856064,-1000.0,0.000309,120]
[328130486,1716913856074,-153.0648168,0.00030927,7]
[328130487,1716913856083,-1409.12,0.00030958,2]
[328130488,1716913856093,-2654.44,0.00030958,2]
[328130489,1716913856103,-500.0,0.00030958,2]
[328130490,1716913856116,-518.19,0.00030958,2]
[328130491,1716913856126,-500.0,0.00030958,2]
[328130492,1716913856135,-500.0,0.00030958,2]
[328130493,1716913856145,-682.59,0.00030958,2]
[328130494,1716913856156,-889.03,0.00030958,2]
[328130495,1716913856165,-549.44,0.00030958,2]
[328130496,1716913856175,-991.41,0.00030958,2]
[328130497,1716913856185,-155.0,0.00031,4]
[328130498,1716913856198,-1200.0,0.00031,2]
[328130499,1716913856208,-1300.0,0.00031012,10]
[328130500,1716913856217,-153.82568732,0.00031022,7]
[328130501,1716913856227,-7286.23,0.00031058,5]
[328130502,1716913856236,-150.0,0.00031113,2]
[328130503,1716913856245,-150.0,0.00031113,2]
[328130504,1716913856255,-150.0,0.00031113,2]
[328130505,1716913856264,-150.0,0.00031113,2]
[328130506,1716913856273,-296.44,0.00031123,2]
[328130507,1716913856283,-276.55,0.00031123,2]
[328130508,1716913856293,-168.74,0.00031123,2]
[328130509,1716913856302,-158.99960963,0.00031126,7]
[328130510,1716913856312,-6665.13436769,0.00031208,10]
[328130511,1716913856322,-844.91733298,0.00031208,10]
[328130512,1716913856331,-1409.12,0.00031232,2]
[328130513,1716913856341,-2654.44,0.00031232,2]
[328130514,1716913856350,-500.0,0.00031232,2]
[328130515,1716913856361,-518.19,0.00031232,2]
[328130516,1716913856370,-500.0,0.00031232,2]
[328130517,1716913856380,-500.0,0.00031232,2]
[328130518,1716913856390,-682.59,0.00031232,2]
[328130519,1716913856400,-889.03,0.00031232,2]
[328130520,1716913856409,-549.44,0.00031232,2]
[328130521,1716913856419,-991.41,0.00031232,2]
[328130522,1716913856428,-7234.67,0.00031319,5]
[328130523,1716913856437,-4265.476277,0.000314,2]
[328130524,1716913856448,-467.6340808,0.00031478,2]
[328130525,1716913856458,-480.2454877,0.00031478,2]
[328130526,1716913856467,-492.8568946,0.00031478,2]
[328130527,1716913856476,-505.4683015,0.00031478,2]
[328130528,1716913856485,-518.0797083,0.00031478,2]
[328130529,1716913856495,-21080.9844387,0.00031478,2]
[328130530,1716913856505,-21649.5077414,0.00031478,2]
[328130531,1716913856515,-22218.0310441,0.00031478,2]
[328130532,1716913856525,-22786.5543467,0.00031478,2]
[328130533,1716913856534,-23355.0776494,0.00031478,2]
[328130534,1716913856544,-157.663853,0.00031478,7]
[328130535,1716913856553,-280.635397,0.00031478,7]
[328130536,1716913856563,-255.665661,0.00031478,7]
[328130537,1716913856572,-255.665661,0.00031478,7]
[328130538,1716913856581,-302.605435,0.00031487,2]
[328130539,1716913856591,-455.022674,0.00031487,2]
[328130540,1716913856600,-20512.4611361,0.00031487,2]
[328130541,1716913856610,-303.295437,0.00031487,7]
[328130542,1716913856620,-151.0,0.00031487,7]
[328130543,1716913856629,-303.295437,0.00031487,7]
[328130544,1716913856638,-151.0,0.00031487,7]
[328130545,1716913856647,-2359.22754053,0.00031498,4]
[328130546,1716913856657,-12026.06820668,0.00031499,5]
[328130547,1716913856667,-3228.75335123,0.00031499,2]
[328130548,1716913856676,-496977.89443652,0.000315,5]
[328130549,1716913856692,-963650.88510212,0.000315,5]
[328130550,1716913856704,-10479.43196172,0.000315,5]
[328130551,1716913856715,-6545.359872,0.000315,5]
[328130552,1716913864057,500.0,9.176e-05,2]
[328130553,1716913864437,500.0,9.176e-05,2]
[328130554,1716913864813,500.0,9.176e-05,2]
[328130555,1716913865186,500.0,9.176e-05,2]
[328130556,1716913865588,500.0,9.176e-05,2]
[328130557,1716913866791,500.0,9.176e-05,2]
[328130558,1716913867298,500.0,9.176e-05,2]
[328130559,1716913867653,571.0,9.176e-05,2]
[328130560,1716913868792,500.0,9.176e-05,2]
[328130561,1716913869307,500.0,9.176e-05,2]
[328130562,1716913869695,500.0,9.176e-05,2]
[328130563,1716913870043,500.0,9.176e-05,2]
[328130564,1716913870412,571.0,9.176e-05,2]
[328130574,1716914033057,197.81,0.00010959,2]
[328130577,1716914678732,244.54,9.208e-05,2]
[328130578,1716914753008,250.0,0.00010974,2]
[328130579,1716914768908,602.11,0.00010952,2]
[328130581,1716914827240,220.67,0.00010967,2]
[328130712,1716914862928,551.24,0.00010995,2]
[328130713,1716914927812,-364.71150736,0.00011164,2]
[328130714,1716914927834,-210.53883072,0.00011165,2]
[328130715,1716914927857,-535.07981141,0.00011166,2]
[328130716,1716914927878,-500.0,0.00011166,2]
[328130717,1716914927901,-155.78,0.00011179,2]
[328130718,1716914927923,-250.0,0.00011179,2]
[328130719,1716914927947,-150.0,0.00011189,2]
[328130720,1716914927969,-150.0,0.00011189,2]
[328130721,1716914927992,-1683.88985051,0.0001119,2]
[328130722,1716914928693,-268.08947108,0.00011163,2]
[328130723,1716914928746,-3731.91052892,0.0001119,2]
[328130724,1716914928985,-4000.0,0.0001119,2]
[328130725,1716914929332,-4000.0,0.0001119,2]
[328130726,1716914929664,-4000.0,0.0001119,2]
[328130727,1716914929947,-4000.0,0.0001119,2]
[328130728,1716914930252,-2484.19962057,0.0001119,2]
[328130729,1716914930275,-1500.0,0.00011197,2]
[328130730,1716914930296,-15.80037943,0.00011209,2]
[328130731,1716914930585,-612.18962057,0.00011209,2]
[328130732,1716914930609,-1970.12,0.00011225,2]
[328130733,1716914930630,-150.0,0.00011232,2]
[328130734,1716914930651,-499.99,0.00011232,2]
[328130735,1716914930674,-155.78,0.00011252,2]
[328130736,1716914930695,-155.78,0.00011324,2]
[328130737,1716914930719,-155.78,0.00011397,2]
[328130738,1716914930741,-155.78,0.0001147,2]
[328130739,1716914930764,-144.58037943,0.00011472,2]
[328130740,1716914930971,-99.95962057,0.00011472,2]
[328130741,1716914930994,-155.78,0.00011543,2]
[328130742,1716914931017,-155.78,0.00011616,2]
[328130743,1716914931040,-155.78,0.00011688,2]
[328130744,1716914931062,-177.68,0.00011745,2]
[328130745,1716914931084,-155.78,0.00011761,2]
[328130746,1716914931107,-429.29,0.00012002,2]
[328130748,1716914969918,1218.89,0.00011374,2]
[328130749,1716914995741,751.61833958,0.00012004,2]
[328130750,1716915002945,268.08947108,0.00012004,2]
[328130751,1716915003161,289.45716544,0.00012002,2]
[328130752,1716915007203,141.89540333,0.00012002,2]
[328130753,1716915007225,25.47293968,0.00012002,2]
[328130754,1716915008051,-429.29,0.00012005,2]
[328130755,1716915008073,-429.29,0.00012009,2]
[328130756,1716915008096,-429.29,0.00012012,2]
[328130757,1716915008119,-429.29,0.00012015,2]
[328130758,1716915008142,-429.29,0.00012018,2]
[328130759,1716915008167,-429.29,0.00012021,2]
[328130760,1716915008189,-429.29,0.00012024,2]
[328130761,1716915008212,-429.29,0.00012028,2]
[328130762,1716915008234,-429.29,0.00012031,2]
[328130763,1716915008255,-136.39,0.00012034,2]
[328130764,1716915008708,-292.9,0.00012034,2]
[328130765,1716915008729,-429.29,0.00012037,2]
[328130766,1716915008752,-429.29,0.0001204,2]
[328130767,1716915008772,-1000.0,0.00012042,2]
[328130768,1716915008793,-429.29,0.00012043,2]
[328130769,1716915008815,-1419.23,0.00012046,2]
[328130770,1716915009662,-3471.54041381,0.00012046,2]
[328130771,1716915009686,-429.29,0.00012046,2]
[328130772,1716915011768,99.16958619,0.00011428,2]
[328130773,1716915011790,652.11924033,0.00011428,2]
[328130774,1716915019096,212.76369068,0.00012004,2]
[328130781,1716915032476,-429.29,0.0001205,2]
[328130782,1716915032489,-429.29,0.00012053,2]
[328130783,1716915032499,-429.29,0.00012056,2]
[328130784,1716915032508,-4434.9000448,0.00012056,2]
[328130785,1716915032517,-429.29,0.00012059,2]
[328130786,1716915032529,-429.29,0.00012062,2]
[328130787,1716915032539,-313.99372925,0.00012063,2]
[328130788,1716915032548,-1298.39020343,0.00012063,2]
[328130789,1716915032564,-212.56,0.00012131,2]
[328130790,1716915032577,-210.0,0.00012308,2]
[328130791,1716915032587,-1728.939,0.000126,2]
[328130792,1716915032596,-1640.8304,0.000126,2]
[328130793,1716915032606,-3975.4343,0.00012658,2]
[328130794,1716915032615,-312.80892937,0.00012698,2]
[328130795,1716915032624,-166.87237412,0.00012698,2]
[328130796,1716915032633,-155.21567507,0.00012698,2]
[328130797,1716915032643,-300.49663506,0.00012698,2]
[328130798,1716915032651,-155.40188889,0.00012698,2]
[328130799,1716915032661,-326.8758113,0.00012698,2]
[328130800,1716915032673,-155.61647389,0.00012698,2]
[328130801,1716915032683,-241.14361363,0.00012698,2]
[328130802,1716915032692,-177.25196659,0.00012698,2]
[328130803,1716915032702,-155.86009079,0.00012698,2]
[328130804,1716915032712,-1064.69028387,0.00012698,2]
[328130805,1716915032721,-482.72660575,0.00012698,2]
[328130806,1716915032731,-167.63387093,0.00012698,2]
[328130807,1716915032740,-155.24268003,0.00012698,2]
[328130808,1716915032750,-237.48860909,0.00012698,2]
[328130809,1716915032759,-263.61892074,0.00012698,2]
[328130810,1716915032768,-206.36727858,0.00012698,2]
[328130811,1716915032778,-1226.71869147,0.00012698,2]
[328130812,1716915032787,-4280.3749567,0.00012698,2]
[328130813,1716915032797,-179.14253769,0.00012698,2]
[328130814,1716915032806,-2364.2726144,0.00012698,2]
[328130815,1716915032816,-276.26477197,0.00012698,2]
[328130816,1716915032825,-1825.78938997,0.00012698,2]
[328130817,1716915032835,-686.78764601,0.00012698,2]
[328130818,1716915032844,-156.01266103,0.00012698,2]
[328130819,1716915032854,-155.0,0.00012698,2]
[328130820,1716915032863,-2813.98016787,0.00012698,2]
[328130821,1716915032872,-155.21997395,0.00012698,2]
[328130822,1716915032882,-162.52068352,0.00012698,2]
[328130823,1716915032891,-505.36917605,0.00012698,2]
[328130824,1716915032901,-155.0,0.00012698,2]
[328130825,1716915032910,-249.83569552,0.00012698,2]
[328130826,1716915032923,-155.0,0.00012698,2]
[328130827,1716915032933,-155.93519035,0.00012698,2]
[328130828,1716915032942,-306.53561288,0.00012698,2]
[328130829,1716915032951,-248.58476661,0.00012698,2]
[328130830,1716915032960,-210.21403465,0.00012698,2]
[328130831,1716915032969,-363.84733603,0.00012698,2]
[328130832,1716915032979,-481.01276567,0.00012698,2]
[328130833,1716915032989,-248.51137147,0.00012698,2]
[328130834,1716915033000,-448.29543391,0.00012699,2]
[328130835,1716915033009,-5565.87580621,0.00012699,2]
[328130836,1716915033019,-1206.3982101,0.000127,2]
[328130837,1716915033032,-861.87782854,0.000127,2]
[328130838,1716915033043,-1195.53907704,0.000127,2]
[328130839,1716915033058,-743.69739469,0.000127,2]
[328130840,1716915033070,-38467.43946344,0.000127,2]
[328130841,1716915033081,-2193.07254094,0.000127,2]
[328130847,1716915038402,-21482.48223103,0.000127,2]
[328130848,1716915038414,-3856.071506,0.000127,2]
[328130849,1716915038430,-7984.553841,0.000127,2]
[328130850,1716915038442,-2183.05553526,0.000127,2]
[328130851,1716915038454,-12539.34255626,0.000127,2]
[328130852,1716915038471,-991.4127967,0.000127,2]
[328130853,1716915038488,-2980.93321332,0.000127,2]
[328130854,1716915038502,-700.76441643,0.000127,2]
[328130855,1716915038514,-327.02981091,0.000127,2]
[328130856,1716915038526,-1532.0,0.000127,2]
[328130857,1716915038627,-31097.30877834,0.000127,2]
[328130858,1716915038637,-8021.05,0.000127,2]
[328130859,1716915038647,-1000.0,0.000127,2]
[328130860,1716915038657,-269.2705,0.000127,2]
[328130861,1716915038667,-168.98346662,0.00012899,2]
[328130862,1716915038681,-211.76470807,0.000129,2]
[328130863,1716915038690,-150.55289133,0.000129,2]
[328130864,1716915038699,-323.49908259,0.000129,2]
[328130865,1716915038708,-753.25027442,0.000129,2]
[328130866,1716915038717,-197.87473693,0.000129,2]
[328130867,1716915038726,-2031.20365427,0.000129,2]
[328130868,1716915038735,-218.87646113,0.0001299,2]
[328130869,1716915038744,-152.12,0.0001299,2]
[328130870,1716915038754,-10535.78838722,0.00012999,2]
[328130871,1716915038763,-288.87510656,0.00012999,2]
[328130872,1716915038772,-399257.01912711,0.00013,2]
[328131009,1716915041421,-386.7847,0.00013,2]
[328131010,1716915041575,-20117.95504947,0.00013,2]
[328131011,1716915041587,-8536.17122077,0.00013,2]
[328131012,1716915041599,-280.62050714,0.00013,2]
[328131013,1716915042247,-154278.87285485,0.00013,2]
[328131014,1716915042259,-256.89893274,0.00013,2]
[328131015,1716915042270,-6479.2731675,0.00013,2]
[328131016,1716915042281,-8895.15,0.00013,2]
[328131017,1716915042292,-987.19092115,0.00013,2]
[328131019,1716915042303,-7059.15225,0.00013,2]
[328131020,1716915042315,-940.67553752,0.00013,2]
[328131021,1716915042330,-35223.6304584,0.00013,2]
[328131022,1716915042341,-30794.58346076,0.00013,2]
[328131023,1716915042353,-361.14200001,0.00013,2]
[328131024,1716915042364,-886.45947666,0.00013,2]
[328131025,1716915042380,-680.2012656,0.00013,2]
[328131029,1716915043432,-2340.0,0.00013,2]
[328131032,1716915043445,-580.80798276,0.00013,2]
[328131033,1716915043456,-500.0,0.00013,2]
[328131034,1716915043592,-1391.50154758,0.00013,2]
[328131035,1716915043603,-2895.07110397,0.00013,2]
[328131036,1716915043615,-12007.26501252,0.00013,2]
[328131037,1716915043626,-2172.89119406,0.00013,2]
[328131038,1716915043645,-1438.8239,0.00013,2]
[328131039,1716915043903,-211016.49999942,0.00013,2]
[328131057,1716915046485,824.23,0.00010959,2]
[328131063,1716915046531,-3692.50579374,0.00013,2]
[328131065,1716915046543,-1654.000128,0.00013,2]
[328131067,1716915046716,-5601.29375481,0.00013,2]
[328131068,1716915046729,-1617.75,0.00013,2]
[328131069,1716915046829,-140930.36263273,0.00013,2]
[328131070,1716915049995,242.55477706,0.00012004,2]
[328131071,1716915055977,672.29162,0.00012004,2]
[328131072,1716915061695,751.45358305,0.00011699,2]
[328131073,1716915069179,-2673.325242,0.00012835,2]
[328131074,1716915069205,-666.51343685,0.000129,2]
[328131075,1716915069228,-332.69150662,0.000129,2]
[328131076,1716915069252,-248.39244766,0.00012998,2]
[328131077,1716915069276,-1079.07736687,0.00012998,2]
[328131078,1716915071172,-2205.38493342,0.00012998,2]
[328131079,1716915071194,-1065.00112556,0.00012998,2]
[328131080,1716915071215,-1729.61394102,0.00012998,2]
[328131081,1716915088949,-5000.0,0.00012997,2]
[328131082,1716915089733,-5000.0,0.00012997,2]
[328131083,1716915146604,260.58,0.00012011,2]
[328131084,1716915199506,-282.26403901,0.00012797,2]
[328131085,1716915199531,-843.41914682,0.00012798,2]
[328131086,1716915199553,-155.0,0.00012798,2]
[328131087,1716915199581,-2719.31681417,0.00012799,2]
[328131088,1716915200179,-4000.0,0.00012799,2]
[328131089,1716915201098,-4000.0,0.00012799,2]
[328131090,1716915201898,-4000.0,0.00012799,2]
[328131091,1716915207974,-1200.0,0.00012799,2]
[328131093,1716915271544,178.87,0.00010874,2]
[328131094,1716915337571,-1356.4159,0.00012636,2]
[328131095,1716915337598,-2431.5792,0.000127,2]
[328131096,1716915337620,-156.78942446,0.00012798,2]
[328131097,1716915337641,-975.84294515,0.00012798,2]
[328131098,1716915337664,-79.37253039,0.00012798,2]
[328131099,1716915338189,-201.90044888,0.00012798,2]
[328131100,1716915338214,-150.0,0.00012798,2]
[328131101,1716915338236,-4648.09955112,0.00012799,2]
[328131102,1716915339246,-5000.0,0.00012799,2]
[328131103,1716915340080,-5000.0,0.00012799,2]
[328131104,1716915341099,-4843.42353996,0.00012799,2]
[328131105,1716915341121,-156.57646004,0.00012799,2]
[328131106,1716915342041,-5000.0,0.00012799,2]
[328131107,1716915353404,-5000.0,0.00012799,2]
[328131108,1716915354046,-5000.0,0.00012799,2]
[328131109,1716915354780,-5000.0,0.00012799,2]
[328131110,1716915482029,-150.0,0.00012699,2]
[328131111,1716915482055,-150.0,0.00012699,2]
[328131112,1716915482078,-2500.0,0.000127,2]
[328131113,1716915482100,-2200.0,0.000127,2]
[328131114,1716915482733,-5000.0,0.000127,2]
[328131117,1716915653816,247.55,0.00010336,2]
[328131118,1716915750849,-250.0,0.00012254,2]
[328131119,1716915750870,-155.77,0.00012272,2]
[328131120,1716915750893,-3594.23,0.00012303,2]
[328131121,1716915751494,-4000.0,0.00012303,2]
[328131122,1716915752107,-4000.0,0.00012303,2]
[328131123,1716915752708,-4000.0,0.00012303,2]
[328131133,1716916209515,150.0,0.00012999,7]
[328131134,1716916210474,150.0,0.00012999,7]
[328131138,1716916231663,-16406.95,0.00011906,2]
[328131139,1716916231673,-1000.0,0.00011906,2]
[328131140,1716916231683,-250.0,0.00011995,2]
[328131141,1716916231694,-250.0,0.00012037,2]
[328131142,1716916231703,-155.77,0.00012075,2]
[328131143,1716916231712,-1591.92,0.00012084,2]
[328131144,1716916231722,-155.77,0.00012285,2]
[328131145,1716916231731,-155.77,0.00012495,2]
[328131146,1716916231741,-247.55,0.000126,2]
[328131147,1716916231751,-1790.46,0.00012646,2]
[328131148,1716916231760,-834.25577502,0.00012699,2]
[328131149,1716916231769,-834.25577501,0.00012699,2]
[328131150,1716916231778,-6045.9314,0.000127,2]
[328131151,1716916231788,-194.11764911,0.000127,2]
[328131152,1716916231797,-165.42920419,0.000127,2]
[328131153,1716916231807,-1908.9,0.000127,2]
[328131154,1716916231816,-299.99,0.000127,2]
[328131155,1716916231826,-3100.04,0.000127,2]
[328131156,1716916231836,-150.55289131,0.000127,2]
[328131157,1716916231849,-323.49908259,0.000127,2]
[328131158,1716916231858,-155.77,0.00012705,2]
[328131159,1716916231867,-150.55289131,0.00012733,2]
[328131160,1716916231876,-150.55289131,0.00012765,2]
[328131161,1716916231887,-218.8764611,0.00012789,2]
[328131162,1716916231895,-153.27,0.00012789,2]
[328131163,1716916231905,-153.27,0.00012789,2]
[328131164,1716916231916,-153.27,0.0001279,2]
[328131165,1716916231926,-3640.44518064,0.00012798,2]
[328131166,1716916231937,-150.55289131,0.00012798,2]
[328131167,1716916231947,-11383.3762536,0.00012799,2]
[328131168,1716916231959,-33892.49999999,0.00012799,2]
[328131169,1716916231970,-37030.31771405,0.00012799,2]
[328131170,1716916231980,-672.29162,0.00012799,2]
[328131171,1716916231992,-17811.256461,0.00012799,2]
[328131173,1716916232003,-3530.45682,0.00012799,2]
[328131175,1716916232015,-2307.44308,0.00012799,2]
[328131176,1716916232026,-10573.8407,0.00012799,2]
[328131177,1716916233035,-7315.13856221,0.00012799,2]
[328131178,1716916233047,-1652.31001679,0.00012799,2]
[328131179,1716916233062,-2146.551421,0.00012799,2]
[328131180,1716916233073,-4579.69176715,0.00012799,2]
[328131183,1716916237642,-33896.38953883,0.00012799,2]
[328131184,1716916237654,-1205.70218896,0.00012799,2]
[328131185,1716916237665,-6055.70337756,0.00012799,2]
[328131186,1716916237677,-12129.45933,0.00012799,2]
[328131187,1716916237716,-23000.0,0.00012799,2]
[328131188,1716916237788,-351.92,0.00012799,2]
[328131189,1716916237799,-1766.99580006,0.00012799,2]
[328131200,1716916240377,-27145.7547007,0.00012799,2]
[328131201,1716916240388,-361.32,0.00012799,2]
[328131202,1716916240400,-432.917,0.00012799,2]
[328131203,1716916240458,-1533.17499723,0.00012799,2]
[328131204,1716916240671,-20234.69999998,0.00012799,2]
[328131205,1716916240683,-22300.782624,0.00012799,2]
[328131206,1716916241504,-130241.93908296,0.00012799,2]
[328131207,1716916241515,-5619.8362805,0.00012799,2]
[328131208,1716916241526,-17803.25000001,0.00012799,2]
[328131247,1716916243163,-4580.3856386,0.00012799,2]
[328131248,1716916243454,-879181.87220789,0.00012799,2]
[328131249,1716916243564,-39434.31059172,0.00012799,2]
[328131250,1716916243575,-521.81552284,0.00012799,2]
[328131251,1716916243587,-1400.10544006,0.00012799,2]
[328131262,1716916245846,-529.79816444,0.00012799,2]
[328131263,1716916245918,-7823.66923527,0.00012799,2]
[328131264,1716916245996,-339.34,0.00011518,2]
[328131280,1716916301798,-155.0,0.00011515,2]
[328131281,1716916310528,505.62075808,0.00011515,2]
[328131282,1716916315149,343.37924192,0.00011515,2]
[328131288,1716916400344,-529.6006328,0.00011514,2]
[328131289,1716916400366,-3470.3993672,0.00011514,2]
[328131290,1716916400818,-3622.82667278,0.00011514,2]
[328131293,1716916474504,-412.11358305,0.00011518,2]
[328131294,1716916474526,-3587.88641695,0.00012128,2]
[328131295,1716916507002,222.79,0.00010162,2]
[328131298,1716916900036,-505.62075808,0.00012027,2]
[328131299,1716916900063,-94.37924192,0.00012028,2]
[328131306,1716917066167,154.38332722,0.0001013,2]
[328131307,1716917066191,57.26667278,0.0001013,2]
[328131319,1716917334270,-322.18540633,0.00011971,2]
[328131320,1716917334296,-677.81459367,0.00011972,2]
[328131338,1716917409524,150.0,0.00012999,7]
[328131339,1716917410570,150.0,0.00012999,7]
[328131352,1716917432188,-250.0,0.00011974,2]
[328131353,1716917432200,-800.0,0.00012011,2]
[328131354,1716917432211,-45.19142246,0.00012021,2]
[328131355,1716917432222,-1147.76857754,0.00012021,2]
[328131356,1716917432231,-67.76438454,0.00012028,2]
[328131357,1716917432240,-250.0,0.00012048,2]
[328131358,1716917432249,-200.0,0.00012089,2]
[328131359,1716917432259,-211.65,0.00012394,2]
[328131360,1716917432270,-2067.44248184,0.000124,2]
[328131361,1716917432286,-1258.92552577,0.000124,2]